bitfinex-derivatives/quotes_BTCF0:USTF0_20241025
["timestamp","ask_amount","ask_price","bid_price","bid_amount"]
[1729833540881,0.073847,67738.0,67737.0,0.073847]
[1729833541088,0.073847,67738.0,67737.0,0.23343711]
[1729833541747,0.12413765,67738.0,67737.0,0.05900881]
[1729833541910,0.12413765,67738.0,67737.0,0.04426002]
[1729833542095,0.073847,67738.0,67737.0,0.04426002]
[1729833542292,0.07385,67735.0,67734.0,0.05029065]
[1729833542492,0.07385,67735.0,67734.0,0.1005813]
[1729833542699,0.07385,67735.0,67734.0,0.2009013]
[1729833543388,0.07385,67735.0,67734.0,0.2747523]
[1729833543989,0.07385,67735.0,67734.0,0.31901232]
[1729833544401,0.07385,67735.0,67734.0,0.24516132]
[1729833546294,0.07385,67735.0,67734.0,0.2009013]
[1729833546492,0.07385,67735.0,67734.0,0.31901876]
[1729833546686,0.07385,67735.0,67734.0,0.2747523]
[1729833548497,0.07385,67735.0,67734.0,0.2009013]
[1729833548690,0.07385,67735.0,67734.0,0.24517066]
[1729833548904,0.07385,67735.0,67734.0,0.2009013]
[1729833550197,0.07385,67735.0,67734.0,0.05029065]
[1729833550496,0.0307,67742.0,67732.0,0.05903333]
[1729833550497,0.073852,67733.0,67732.0,0.05903333]
[1729833550699,0.05029065,67733.0,67731.0,0.05903333]
[1729833550914,0.073854,67731.0,67730.0,0.05903333]
[1729833552303,0.434654,67731.0,67730.0,0.05903333]
[1729833552605,0.434654,67731.0,67730.0,0.05904343]
[1729833554103,0.3608,67731.0,67729.0,0.05904343]
[1729833554301,0.073855,67730.0,67729.0,0.05904343]
[1729833554490,0.073856,67729.0,67728.0,0.11192901]
[1729833555216,0.073856,67729.0,67728.0,0.17096458]
[1729833555405,0.073856,67729.0,67728.0,0.11192901]
[1729833556102,0.073856,67729.0,67728.0,0.17096032]
[1729833557291,0.073856,67729.0,67728.0,0.06163836]
[1729833557532,0.073856,67729.0,67728.0,0.01134771]
[1729833557699,0.073856,67729.0,67728.0,0.1005813]
[1729833559202,0.073856,67729.0,67728.0,0.05903131]
[1729833559611,0.073856,67729.0,67727.0,0.33405191]
[1729833559906,0.073856,67729.0,67727.0,0.2750206]
[1729833560109,0.073856,67729.0,67728.0,0.05901075]
[1729833560316,0.073856,67729.0,67727.0,0.1744393]
[1729833560503,0.073856,67729.0,67728.0,0.05901057]
[1729833560810,0.073856,67729.0,67728.0,0.05901106]
[1729833561017,0.073856,67729.0,67727.0,0.2750206]
[1729833561210,0.073856,67729.0,67727.0,0.1744393]
[1729833561412,0.073857,67728.0,67727.0,0.22472995]
[1729833561613,0.073857,67728.0,67727.0,0.2750206]
[1729833563111,0.073857,67728.0,67727.0,0.1744393]
[1729833563902,0.073857,67728.0,67727.0,0.2747193]
[1729833565807,0.073857,67728.0,67727.0,0.3753006]
[1729833566510,0.073857,67728.0,67727.0,0.44909991]
[1729833566717,0.073853,67732.0,67731.0,0.073854]
[1729833566914,0.073853,67732.0,67731.0,0.1744353]
[1729833571902,0.073853,67732.0,67731.0,0.2747153]
[1729833572116,0.07385,67736.0,67731.0,0.6437813]
[1729833572413,0.07385,67736.0,67735.0,0.1005813]
[1729833573012,0.3608,67738.0,67735.0,0.2330626]
[1729833573212,0.073845,67740.0,67738.0,0.073846]
[1729833573522,0.073845,67740.0,67739.0,0.1005813]
[1729833575011,0.073845,67740.0,67739.0,0.2750076]
[1729833575211,0.073845,67740.0,67739.0,0.3752876]
[1729833576409,0.3608,67746.0,67739.0,0.45845748]
[1729833576615,0.073842,67742.0,67740.0,0.15700994]
[1729833576808,0.073842,67742.0,67741.0,0.27493073]
[1729833577022,0.073842,67742.0,67741.0,0.2011626]
[1729833577433,0.3608,67746.0,67741.0,0.2011626]
[1729833577615,0.3608,67746.0,67745.0,0.15956483]
[1729833578019,0.3608,67746.0,67745.0,0.25984483]
[1729833578815,0.434638,67746.0,67745.0,0.25984483]
[1729833579222,0.434638,67746.0,67745.0,0.2008613]
[1729833582231,0.073839,67745.0,67744.0,0.0305]
[1729833582417,0.073839,67745.0,67744.0,0.1310813]
[1729833584420,0.073844,67740.0,67739.0,0.01135441]
[1729833584629,0.073844,67740.0,67739.0,0.10028]
[1729833585130,0.073845,67739.0,67738.0,0.1005813]
[1729833585325,0.073845,67739.0,67738.0,0.2008613]
[1729833585520,0.073845,67739.0,67738.0,0.1005813]
[1729833585726,0.073845,67739.0,67738.0,0.2008613]
[1729833586740,0.073845,67739.0,67738.0,0.1005813]
[1729833587027,0.073845,67739.0,67738.0,0.2008213]
[1729833589329,0.073845,67739.0,67738.0,0.3014026]
[1729833589535,0.073845,67739.0,67738.0,0.3752496]
[1729833590038,0.434638,67746.0,67744.0,0.07384]
[1729833590335,0.434638,67746.0,67745.0,0.2056203]
[1729833590836,0.073838,67746.0,67745.0,0.2056203]
[1729833591096,0.073838,67746.0,67745.0,0.26457499]
[1729833593030,0.073838,67746.0,67745.0,0.2056203]
[1729833593424,0.073838,67746.0,67745.0,0.15532965]
[1729833593639,0.073838,67746.0,67745.0,0.1317813]
[1729833593843,0.073838,67746.0,67745.0,0.19073959]
[1729833594435,0.073838,67746.0,67745.0,0.14276738]
[1729833595933,0.073838,67746.0,67745.0,1.64276738]
[1729833596236,0.073838,67746.0,67745.0,0.14276738]
[1729833597210,0.073838,67746.0,67745.0,0.24300738]
[1729833597437,0.073838,67746.0,67745.0,0.31684638]
[1729833598330,0.073833,67750.0,67748.0,0.073835]
[1729833598634,0.073833,67750.0,67749.0,0.15956491]
[1729833599243,0.073833,67750.0,67749.0,0.1005813]
[1729833599441,0.073833,67750.0,67749.0,0.15957014]
[1729833600235,0.073833,67750.0,67749.0,0.1005813]
[1729833605536,0.073833,67750.0,67748.0,0.10024]
[1729833605537,0.3934,67753.0,67748.0,0.10024]
[1729833605742,0.073836,67748.0,67747.0,0.05029065]
[1729833605956,0.073836,67748.0,67747.0,0.15053065]
[1729833606328,0.073836,67748.0,67747.0,0.05029065]
[1729833607246,0.073837,67747.0,67746.0,0.10024]
[1729833607541,0.073838,67746.0,67745.0,0.11122608]
[1729833609150,0.073838,67746.0,67745.0,0.01098608]
[1729833609340,0.05029065,67750.0,67744.0,0.10024]
[1729833609551,0.12412365,67750.0,67749.0,0.05904132]
[1729833610050,0.12412365,67750.0,67746.0,0.1005813]
[1729833610051,0.05029065,67750.0,67748.0,0.05904132]
[1729833610247,0.073835,67749.0,67748.0,0.05904132]
[1729833611853,0.073836,67748.0,67747.0,0.05904132]
[1729833613342,0.44369065,67753.0,67746.0,0.1005813]
[1729833613343,0.073837,67747.0,67746.0,0.1005813]
[1729833613950,0.073837,67747.0,67746.0,0.1744193]
[1729833614148,0.073837,67747.0,67746.0,0.24818743]
[1729833614448,0.073837,67747.0,67746.0,0.25719904]
[1729833614653,0.073837,67747.0,67746.0,0.25714767]
[1729833614850,0.073837,67747.0,67746.0,0.1005813]
[1729833615852,0.073837,67747.0,67746.0,0.05029065]
[1729833616048,0.073833,67750.0,67744.0,0.07379733]
[1729833616291,0.073833,67750.0,67749.0,0.05904817]
[1729833616856,0.12412565,67749.0,67748.0,0.05904817]
[1729833617455,0.12412565,67749.0,67743.0,0.2007413]
[1729833617456,0.07384,67744.0,67743.0,0.2007413]
[1729833617649,0.07384,67744.0,67743.0,0.24503237]
[1729833618253,0.07384,67744.0,67743.0,0.14487237]
[1729833618456,0.07384,67744.0,67743.0,0.24503237]
[1729833619050,0.07384,67744.0,67743.0,0.2007413]
[1729833620554,0.3608,67753.0,67743.0,0.2007413]
[1729833620861,0.073836,67748.0,67745.0,0.04430289]
[1729833621054,0.073836,67748.0,67747.0,0.05029065]
[1729833621459,0.073836,67748.0,67747.0,0.1005813]
[1729833622353,0.3608,67749.0,67748.0,0.073836]
[1729833622562,0.434635,67749.0,67748.0,0.0648]
[1729833622856,0.434635,67749.0,67748.0,0.10910289]
[1729833624554,0.434635,67749.0,67748.0,0.0648]
[1729833625772,0.434635,67749.0,67748.0,0.13859733]
[1729833625961,0.434635,67749.0,67748.0,0.22141987]
[1729833626656,0.434635,67749.0,67748.0,0.0648]
[1729833626856,0.48492565,67749.0,67748.0,0.16496]
[1729833627052,0.48492565,67749.0,67748.0,0.0648]
[1729833627252,0.434635,67749.0,67748.0,0.0648]
[1729833629548,0.434635,67749.0,67748.0,0.11509065]
[1729833630254,0.073835,67749.0,67748.0,0.11509065]
[1729833631056,0.073835,67749.0,67748.0,0.0648]
[1729833631307,0.073835,67749.0,67748.0,0.0315]
[1729833631449,0.073835,67749.0,67744.0,0.07379733]
[1729833631668,0.073838,67746.0,67745.0,0.05907401]
[1729833631855,0.073841,67743.0,67742.0,0.05907401]
[1729833632057,0.073842,67742.0,67741.0,0.05907401]
[1729833632360,0.073843,67741.0,67740.0,0.08997401]
[1729833632565,0.073848,67737.0,67736.0,0.14449432]
[1729833632839,0.434648,67737.0,67736.0,0.14449432]
[1729833633064,0.434648,67737.0,67736.0,0.19478497]
[1729833633265,0.434648,67737.0,67736.0,0.16164306]
[1729833634772,0.073848,67737.0,67736.0,0.16164306]
[1729833635058,0.073848,67737.0,67736.0,0.06144306]
[1729833639667,0.073848,67737.0,67736.0,0.01115241]
[1729833639967,0.073849,67736.0,67735.0,0.05907401]
[1729833641464,0.07385,67735.0,67734.0,0.15927401]
[1729833641865,0.07385,67735.0,67734.0,0.1002]
[1729833642065,0.07385,67735.0,67734.0,0.15917347]
[1729833642272,0.07385,67735.0,67734.0,0.17059426]
[1729833642969,0.07385,67735.0,67734.0,0.11162049]
[1729833643190,0.02395,67735.0,67734.0,0.01142049]
[1729833643384,0.3608,67743.0,67734.0,0.01142049]
[1729833643385,0.3608,67743.0,67734.0,0.35695457]
[1729833643564,0.434641,67743.0,67742.0,0.1005813]
[1729833643770,0.434641,67743.0,67742.0,0.15954513]
[1729833643975,0.073841,67743.0,67742.0,0.1005813]
[1729833645272,0.073838,67746.0,67744.0,0.073839]
[1729833645466,0.073838,67746.0,67745.0,0.2314813]
[1729833645775,0.073838,67746.0,67745.0,0.3053203]
[1729833647480,0.073838,67746.0,67745.0,0.3355203]
[1729833653363,0.073838,67746.0,67745.0,0.2353203]
[1729833653573,0.073838,67746.0,67745.0,0.3354403]
[1729833660577,0.3608,67753.0,67747.0,0.073836]
[1729833660778,0.43463,67753.0,67752.0,0.1005813]
[1729833664200,0.43463,67753.0,67752.0,0.2749936]
[1729833664201,0.07383,67753.0,67752.0,0.2749936]
[1729833664791,0.07383,67753.0,67752.0,1.7749936]
[1729833665189,0.07383,67753.0,67752.0,1.78619436]
[1729833666493,0.07383,67753.0,67752.0,1.61178206]
[1729833666880,0.07383,67753.0,67752.0,1.71190206]
[1729833670294,0.07383,67753.0,67752.0,1.61178206]
[1729833670484,0.07383,67753.0,67752.0,0.11178206]
[1729833670720,0.07383,67753.0,67752.0,0.21190206]
[1729833671387,0.07383,67753.0,67752.0,0.11178206]
[1729833671696,0.07383,67753.0,67752.0,0.21190206]
[1729833674795,0.07383,67753.0,67752.0,0.28573306]
[1729833676094,0.07383,67753.0,67752.0,0.21190206]
[1729833676597,0.07383,67753.0,67752.0,0.11178206]
[1729833676898,0.07383,67753.0,67752.0,0.21186206]
[1729833677109,0.49309065,67752.0,67740.0,0.0442098]
[1729833677287,0.12708984,67753.0,67735.0,0.10008]
[1729833677288,0.073845,67739.0,67738.0,0.0442098]
[1729833677513,0.073845,67739.0,67738.0,0.1005813]
[1729833678294,0.073845,67739.0,67738.0,0.2006613]
[1729833680497,0.073845,67739.0,67738.0,0.1005813]
[1729833680806,0.073845,67739.0,67738.0,0.2006613]
[1729833680996,0.073845,67739.0,67738.0,0.2315613]
[1729833681517,0.07384,67744.0,67738.0,0.3321426]
[1729833681709,0.07384,67744.0,67743.0,0.15956214]
[1729833682395,0.07384,67744.0,67743.0,0.1005813]
[1729833682592,0.07384,67744.0,67743.0,0.15955715]
[1729833684307,0.07384,67744.0,67743.0,0.21220849]
[1729833685004,0.07384,67744.0,67741.0,0.10008]
[1729833685195,0.43741632,67742.0,67738.0,0.05897097]
[1729833686015,0.073845,67739.0,67738.0,0.05897097]
[1729833686193,0.3608,67742.0,67737.0,0.05897097]
[1729833686499,0.073847,67738.0,67737.0,0.05897097]
[1729833687291,0.073847,67738.0,67737.0,0.10008]
[1729833690615,0.073847,67738.0,67737.0,0.13308]
[1729833690798,0.073847,67738.0,67737.0,0.033]
[1729833697711,0.434647,67738.0,67737.0,0.033]
[1729833697905,0.434647,67738.0,67737.0,0.07717937]
[1729833698296,0.073847,67738.0,67737.0,0.033]
[1729833698502,0.434647,67738.0,67737.0,0.033]
[1729833698806,0.434647,67738.0,67737.0,0.07718371]
[1729833699208,0.434647,67738.0,67737.0,0.033]
[1729833699413,0.434647,67738.0,67737.0,0.07718922]
[1729833699803,0.434647,67738.0,67737.0,0.033]
[1729833701211,0.434647,67738.0,67737.0,0.10961632]
[1729833701902,0.434647,67738.0,67737.0,0.15381932]
[1729833702107,0.51126332,67738.0,67737.0,0.077203]
[1729833702325,0.58787964,67738.0,67737.0,0.07721004]
[1729833702502,0.51126332,67738.0,67737.0,0.07721004]
[1729833702713,0.51126332,67738.0,67737.0,0.033]
[1729833703411,0.51126332,67738.0,67737.0,0.07721004]
[1729833704118,0.434647,67738.0,67737.0,0.07721004]
[1729833704310,0.434647,67738.0,67737.0,0.033]
[1729833705221,0.434647,67738.0,67737.0,0.07722913]
[1729833706205,0.434647,67738.0,67737.0,0.033]
[1729833707208,0.073847,67738.0,67737.0,0.033]
[1729833707407,0.434647,67738.0,67737.0,0.033]
[1729833708612,0.434647,67738.0,67737.0,0.0772754]
[1729833711330,0.434647,67738.0,67737.0,0.033]
[1729833711723,0.434647,67738.0,67737.0,0.07727904]
[1729833712218,0.434647,67738.0,67737.0,0.033]
[1729833714927,0.434647,67738.0,67737.0,0.09203872]
[1729833715514,0.434647,67738.0,67737.0,0.19261428]
[1729833716539,0.073847,67738.0,67737.0,0.19261428]
[1729833716825,0.434647,67738.0,67737.0,0.19261428]
[1729833718235,0.434647,67738.0,67737.0,0.13357556]
[1729833718525,0.434647,67738.0,67737.0,0.19266715]
[1729833719123,0.073847,67738.0,67737.0,0.13357556]
[1729833719321,0.434647,67738.0,67737.0,0.13357556]
[1729833719626,0.434647,67738.0,67737.0,0.19266989]
[1729833720020,0.434647,67738.0,67737.0,0.13357556]
[1729833720423,0.434647,67738.0,67737.0,0.033]
[1729833720823,0.434647,67738.0,67737.0,0.09209454]
[1729833723034,0.434647,67738.0,67737.0,0.033]
[1729833723953,0.434647,67738.0,67737.0,0.08328778]
[1729833724142,0.434647,67738.0,67737.0,0.13357556]
[1729833724936,0.434647,67738.0,67737.0,0.16367556]
[1729833728621,0.434647,67738.0,67737.0,0.0631]
[1729833735233,0.434647,67738.0,67737.0,0.11338778]
[1729833735432,0.434647,67738.0,67737.0,0.16367556]
[1729833737941,0.073842,67743.0,67740.0,0.073844]
[1729833738146,0.3608,67752.0,67741.0,0.10057556]
[1729833738352,0.3608,67752.0,67750.0,0.14490226]
[1729833738554,0.434631,67752.0,67751.0,0.0312]
[1729833739052,0.434631,67752.0,67751.0,0.0755267]
[1729833739249,0.434631,67752.0,67751.0,0.0633]
[1729833740944,0.3608,67752.0,67751.0,0.137132]
[1729833741451,0.3608,67752.0,67751.0,0.19612108]
[1729833742342,0.3608,67752.0,67751.0,0.137132]
[1729833743053,0.434631,67752.0,67751.0,0.0633]
[1729833744065,0.434631,67752.0,67751.0,0.07253861]
[1729833747054,0.3608,67752.0,67751.0,0.14637061]
[1729833749764,0.434631,67752.0,67751.0,0.07253861]
[1729833749945,0.434631,67752.0,67751.0,0.27311417]
[1729833751110,0.434631,67752.0,67751.0,0.07253861]
[1729833751111,0.48491878,67752.0,67751.0,0.07253861]
[1729833751370,0.48491878,67752.0,67751.0,0.14043861]
[1729833751596,0.53520656,67752.0,67751.0,0.14043861]
[1729833752350,0.48491878,67752.0,67751.0,0.19072639]
[1729833752570,0.434631,67752.0,67751.0,0.24101417]
[1729833754769,0.434631,67752.0,67751.0,0.14101417]
[1729833754969,0.434631,67752.0,67751.0,0.24101417]
[1729833758668,0.434631,67752.0,67751.0,0.28521474]
[1729833758867,0.434631,67752.0,67751.0,0.24101417]
[1729833759067,0.434631,67752.0,67751.0,0.28519437]
[1729833759666,0.073831,67752.0,67751.0,0.24101417]
[1729833759864,0.073831,67752.0,67751.0,0.28519873]
[1729833760110,0.073831,67752.0,67751.0,0.24101417]
[1729833766480,0.073829,67755.0,67752.0,0.073831]
[1729833766776,0.073829,67755.0,67754.0,0.10057556]
[1729833768269,0.073829,67755.0,67754.0,0.15951056]
[1729833768893,0.3608,67756.0,67755.0,0.073828]
[1729833769070,0.3608,67756.0,67755.0,0.17440356]
[1729833769582,0.434627,67756.0,67755.0,0.23333856]
[1729833769789,0.434627,67756.0,67755.0,0.15951056]
[1729833774273,0.434627,67756.0,67755.0,0.10057556]
[1729833775987,0.073827,67756.0,67755.0,0.10057556]
[1729833776979,0.073827,67756.0,67755.0,0.20053556]
[1729833778576,0.073827,67756.0,67755.0,0.27436356]
[1729833779484,0.073827,67756.0,67755.0,0.20053556]
[1729833783882,0.12638937,67756.0,67755.0,0.20053556]
[1729833784276,0.05256237,67756.0,67755.0,0.20053556]
[1729833784580,0.3608,67763.0,67755.0,0.20053556]
[1729833784581,0.073823,67760.0,67755.0,0.20053556]
[1729833784783,0.073823,67760.0,67759.0,0.17439956]
[1729833784982,0.12642495,67760.0,67759.0,0.1226852]
[1729833785373,0.12642495,67760.0,67759.0,0.17297298]
[1729833785574,0.12642495,67760.0,67759.0,0.09914898]
[1729833788675,0.07383,67753.0,67752.0,0.032]
[1729833788879,0.07383,67753.0,67752.0,0.23253556]
[1729833789385,0.07383,67753.0,67752.0,0.13257556]
[1729833789589,0.07383,67753.0,67752.0,0.20053556]
[1729833789883,0.07383,67753.0,67752.0,0.10057556]
[1729833790096,0.07383,67753.0,67752.0,0.20053556]
[1729833791184,0.07383,67753.0,67752.0,0.09996]
[1729833791887,0.07383,67753.0,67752.0,0.15024778]
[1729833792097,0.07383,67753.0,67752.0,0.20053556]
[1729833792476,0.07383,67753.0,67752.0,0.10057556]
[1729833792781,0.07383,67753.0,67752.0,0.20053556]
[1729833793882,0.43463,67753.0,67752.0,0.20053556]
[1729833794786,0.07383,67753.0,67752.0,0.20053556]
[1729833794995,0.43463,67753.0,67752.0,0.20053556]
[1729833796279,0.07383,67753.0,67752.0,0.20053556]
[1729833796477,0.43463,67753.0,67752.0,0.20053556]
[1729833797496,0.07383,67753.0,67752.0,0.30111112]
[1729833797789,0.07383,67753.0,67752.0,0.37494212]
[1729833797790,0.3608,67753.0,67752.0,0.37494212]
[1729833799286,0.3608,67760.0,67752.0,0.74391112]
[1729833799287,0.073827,67756.0,67752.0,0.74391112]
[1729833799490,0.073827,67756.0,67755.0,0.17440356]
[1729833801182,0.073827,67756.0,67755.0,0.073828]
[1729833801383,0.073827,67756.0,67755.0,0.17440356]
[1729833803491,0.073829,67754.0,67753.0,0.04428826]
[1729833803802,0.05028778,67756.0,67753.0,0.09992]
[1729833803998,0.073829,67754.0,67753.0,0.09992]
[1729833804299,0.073829,67754.0,67753.0,0.20049556]
[1729833804684,0.073829,67754.0,67753.0,0.27432556]
[1729833805193,0.073829,67754.0,67753.0,0.34799431]
[1729833805393,0.073829,67754.0,67753.0,0.27432556]
[1729833805605,0.073825,67758.0,67753.0,0.18413414]
[1729833805795,0.073825,67758.0,67757.0,0.17440156]
[1729833806307,0.3608,67768.0,67757.0,0.18393086]
[1729833806600,0.434614,67768.0,67767.0,0.10057556]
[1729833812998,0.48682663,67768.0,67767.0,0.10057556]
[1729833813593,0.3608,67768.0,67764.0,0.09992]
[1729833813788,0.3608,67768.0,67767.0,0.10057556]
[1729833813789,0.434614,67768.0,67767.0,0.10057556]
[1729833813995,0.48686401,67768.0,67767.0,0.10057556]
[1729833814395,0.434614,67768.0,67767.0,0.10057556]
[1729833815227,0.48686493,67768.0,67767.0,0.04886615]
[1729833815399,0.48688827,67768.0,67767.0,0.09915393]
[1729833815603,0.48689923,67768.0,67767.0,0.09915393]
[1729833817205,0.434614,67768.0,67767.0,0.09915393]
[1729833818202,0.434614,67768.0,67766.0,0.10057556]
[1729833818203,0.3608,67768.0,67766.0,0.10057556]
[1729833818400,0.073815,67767.0,67766.0,0.10057556]
[1729833825105,0.073815,67767.0,67766.0,0.20045556]
[1729833828008,0.073815,67767.0,67766.0,0.25949502]
[1729833831421,0.073815,67767.0,67766.0,0.20045556]
[1729833832710,0.073815,67767.0,67766.0,0.25074334]
[1729833832904,0.073815,67767.0,67766.0,0.20045556]
[1729833834207,0.073815,67767.0,67766.0,0.09988]
[1729833834419,0.073815,67767.0,67766.0,0.20045556]
[1729833835112,0.073815,67767.0,67766.0,0.10057556]
[1729833835330,0.073815,67767.0,67766.0,0.20041556]
[1729833835519,0.073815,67767.0,67766.0,0.23221556]
[1729833837314,0.073815,67767.0,67766.0,0.33279112]
[1729833837718,0.073815,67767.0,67766.0,0.23221556]
[1729833839919,0.073815,67767.0,67766.0,0.13164]
[1729833840319,0.073815,67767.0,67766.0,0.09984]
[1729833840813,0.3608,67768.0,67766.0,0.09984]
[1729833841118,0.073815,67767.0,67766.0,0.09984]
[1729833842518,0.073817,67765.0,67764.0,0.10057556]
[1729833842719,0.073817,67765.0,67764.0,0.20041556]
[1729833845711,0.073817,67765.0,67764.0,0.2742239]
[1729833846129,0.073817,67765.0,67764.0,0.20041556]
[1729833851719,0.073817,67765.0,67764.0,0.10057556]
[1729833851917,0.073817,67765.0,67764.0,0.20041556]
[1729833852752,0.3608,67768.0,67762.0,0.00881299]
[1729833852753,0.073819,67763.0,67762.0,0.00881299]
[1729833853039,0.073821,67761.0,67760.0,0.07380834]
[1729833853242,0.073821,67761.0,67760.0,0.09984]
[1729833853637,0.073821,67761.0,67759.0,0.1743839]
[1729833853638,0.073823,67760.0,67759.0,0.07380834]
[1729833853858,0.41108778,67760.0,67758.0,0.07380834]
[1729833854148,0.073825,67758.0,67755.0,0.07380834]
[1729833854340,0.05028778,67755.0,67754.0,0.07383213]
[1729833854540,0.12411578,67755.0,67754.0,0.05905148]
[1729833854848,0.07383,67753.0,67752.0,0.15889148]
[1729833855058,0.07383,67753.0,67752.0,0.06822213]
[1729833855536,0.07383,67753.0,67752.0,0.00917065]
[1729833855838,0.073831,67752.0,67751.0,0.10057556]
[1729833856054,0.434631,67752.0,67751.0,0.10057556]
[1729833857043,0.434631,67752.0,67751.0,0.10954855]
[1729833858532,0.434631,67752.0,67751.0,0.20938855]
[1729833860143,0.434631,67752.0,67751.0,0.10954855]
[1729833860441,0.53520656,67752.0,67751.0,0.00897299]
[1729833860637,0.46137556,67752.0,67748.0,0.0998]
[1729833860838,0.073835,67749.0,67748.0,0.0998]
[1729833861246,0.073835,67749.0,67748.0,0.14404112]
[1729833861436,0.073835,67749.0,67748.0,0.0998]
[1729833861638,0.073835,67749.0,67748.0,0.10881626]
[1729833862742,0.073836,67748.0,67747.0,0.0998]
[1729833864042,0.073836,67748.0,67747.0,0.15008778]
[1729833864363,0.073836,67748.0,67747.0,0.20037556]
[1729833864745,0.073836,67748.0,67747.0,0.10057556]
[1729833864940,0.073836,67748.0,67747.0,0.20037556]
[1729833869232,0.073836,67748.0,67747.0,0.10057556]
[1729833869544,0.073836,67748.0,67747.0,0.20037556]
[1729833875654,0.073836,67748.0,67747.0,0.10057556]
[1729833875947,0.073836,67748.0,67747.0,0.20037556]
[1729833876849,0.073836,67748.0,67747.0,0.0998]
[1729833877146,0.073836,67748.0,67747.0,0.20037556]
[1729833877549,0.073836,67748.0,67747.0,0.25942704]
[1729833877741,0.073836,67748.0,67747.0,0.20037556]
[1729833878553,0.073836,67748.0,67747.0,0.25942704]
[1729833880153,0.073836,67748.0,67747.0,0.20037556]
[1729833883558,0.073836,67748.0,67747.0,0.27420769]
[1729833884057,0.073836,67748.0,67747.0,0.35855682]
[1729833884254,0.073836,67748.0,67747.0,0.35856799]
[1729833884556,0.073836,67748.0,67747.0,0.28473586]
[1729833887555,0.073836,67748.0,67747.0,0.3586131]
[1729833891653,0.073836,67748.0,67747.0,0.28473586]
[1729833891859,0.073836,67748.0,67747.0,0.35857286]
[1729833893453,0.3608,67751.0,67749.0,0.073834]
[1729833893657,0.434632,67751.0,67750.0,0.19257556]
[1729833898853,0.073832,67751.0,67750.0,0.19257556]
[1729833899051,0.434632,67751.0,67750.0,0.19257556]
[1729833906470,0.073832,67751.0,67750.0,0.19257556]
[1729833908170,0.073825,67758.0,67750.0,0.44086314]
[1729833908392,0.434624,67759.0,67758.0,0.10057556]
[1729833908868,0.434624,67759.0,67758.0,0.15967657]
[1729833909476,0.434624,67759.0,67758.0,0.10057556]
[1729833910474,0.434624,67759.0,67758.0,0.15963993]
[1729833910960,0.434624,67759.0,67758.0,0.10057556]
[1729833911387,0.434624,67759.0,67758.0,0.15963084]
[1729833911975,0.434624,67759.0,67758.0,0.1596235]
[1729833912158,0.434624,67759.0,67758.0,0.10057556]
[1729833912561,0.434624,67759.0,67758.0,0.15961625]
[1729833912799,0.434624,67759.0,67758.0,0.10057556]
[1729833915073,0.434624,67759.0,67758.0,0.10941094]
[1729833917174,0.3608,67782.0,67758.0,0.6527465]
[1729833917387,0.063,67778.0,67775.0,0.05898504]
[1729833917591,0.073805,67776.0,67775.0,0.05028778]
[1729833918186,0.073807,67774.0,67773.0,0.09972]
[1729833920466,0.073807,67774.0,67773.0,0.15291789]
[1729833921564,0.073807,67774.0,67773.0,0.10875457]
[1729833927966,0.073807,67774.0,67773.0,0.00903457]
[1729833928166,0.073807,67774.0,67773.0,0.0996]
[1729833930366,0.073807,67774.0,67772.0,0.10971395]
[1729833930568,0.073807,67774.0,67773.0,0.0996]
[1729833931191,0.073807,67774.0,67773.0,0.20017556]
[1729833932987,0.073807,67774.0,67773.0,0.14988778]
[1729833933493,0.073807,67774.0,67773.0,0.20017556]
[1729833937085,0.073807,67774.0,67773.0,0.10057556]
[1729833937288,0.073807,67774.0,67773.0,0.20017556]
[1729833939470,0.073807,67774.0,67773.0,0.24433888]
[1729833940593,0.073807,67774.0,67773.0,0.20017556]
[1729833944500,0.073807,67774.0,67773.0,0.2591606]
[1729833945081,0.073807,67774.0,67773.0,0.20017556]
[1729833945287,0.073807,67774.0,67773.0,0.2591606]
[1729833945595,0.073807,67774.0,67773.0,0.20017556]
[1729833947806,0.073804,67778.0,67777.0,0.073804]
[1729833948004,0.1241032,67778.0,67777.0,0.10057556]
[1729833948900,0.073808,67774.0,67772.0,0.00913839]
[1729833949094,0.0738,67781.0,67773.0,0.20017556]
[1729833949439,0.073807,67774.0,67773.0,0.0996]
[1729833949592,0.073807,67774.0,67773.0,0.14988778]
[1729833949903,0.073807,67774.0,67773.0,0.05028778]
[1729833950205,0.073807,67774.0,67773.0,0.14988778]
[1729833950396,0.073807,67774.0,67773.0,0.10057556]
[1729833950593,0.073807,67774.0,67773.0,0.20017556]
[1729833951400,0.12383484,67774.0,67773.0,0.20017556]
[1729833952591,0.12383484,67774.0,67773.0,0.10057556]
[1729833952799,0.12383484,67774.0,67773.0,0.20013556]
[1729833953592,0.12383484,67774.0,67773.0,0.09956]
[1729833953902,0.12383484,67774.0,67773.0,0.20013556]
[1729833954798,0.073807,67774.0,67773.0,0.35917034]
[1729833955301,0.073807,67774.0,67773.0,0.28532116]
[1729833957611,0.073807,67774.0,67773.0,0.28525987]
[1729833958295,0.073807,67774.0,67773.0,0.35906787]
[1729833960199,0.073807,67774.0,67773.0,0.30878009]
[1729833960394,0.073807,67774.0,67773.0,0.35906787]
[1729833961197,0.073807,67774.0,67773.0,0.35906067]
[1729833961799,0.073803,67778.0,67777.0,0.073804]
[1729833962103,0.073803,67778.0,67777.0,0.17437956]
[1729833962302,0.073803,67778.0,67777.0,0.27495512]
[1729833962507,0.073803,67778.0,67777.0,0.17437956]
[1729833962701,0.073803,67778.0,67777.0,0.22466734]
[1729833963004,0.073803,67778.0,67777.0,0.17437956]
[1729833963204,0.073803,67778.0,67777.0,0.22466734]
[1729833963404,0.073803,67778.0,67777.0,0.17437956]
[1729833963617,0.073803,67778.0,67777.0,0.22466734]
[1729833963803,0.073803,67778.0,67777.0,0.27495512]
[1729833963998,0.073803,67778.0,67777.0,0.22466734]
[1729833964206,0.073803,67778.0,67777.0,0.27495512]
[1729833966496,0.073803,67778.0,67777.0,0.22466734]
[1729833966700,0.073803,67778.0,67777.0,0.27495512]
[1729833966895,0.3608,67780.0,67777.0,0.15086334]
[1729833967207,0.073799,67782.0,67781.0,0.073799]
[1729833967402,0.073799,67782.0,67781.0,0.17437456]
[1729833970805,0.073799,67782.0,67781.0,0.10057556]